bitfinex/quotes_SOLUSD_20250811
["timestamp","ask_amount","ask_price","bid_price","bid_amount"]
[1754895891480,30.0,184.64,184.63,44.01623788]
[1754895891693,34.02132122,184.64,184.63,44.01623788]
[1754895892806,34.02132122,184.64,184.63,37.94]
[1754895895079,30.0,184.64,184.63,48.81260733]
[1754895895280,30.0,184.64,184.63,59.12245345]
[1754895895504,30.0,184.64,184.63,63.9188229]
[1754895896019,0.03,184.67,184.63,77.4594176]
[1754895896180,0.03,184.67,184.64,0.66]
[1754895896519,0.03,184.67,184.65,42.67636945]
[1754895896799,30.0,184.66,184.65,42.67636945]
[1754895897009,34.02461755,184.66,184.65,48.09202068]
[1754895897179,34.02461755,184.66,184.65,48.75202068]
[1754895897505,34.02461755,184.66,184.65,43.95565123]
[1754895897704,34.02461755,184.66,184.65,48.75202068]
[1754895898276,34.02461755,184.66,184.65,43.95565123]
[1754895898491,34.02461755,184.66,184.65,48.75202068]
[1754895899208,34.02518462,184.66,184.65,48.75202068]
[1754895900212,30.0,184.66,184.65,48.75202068]
[1754895900506,30.0,184.66,184.65,43.95565123]
[1754895900681,4.02248373,184.66,184.65,43.95565123]
[1754895900876,0.03,184.67,184.65,43.95565123]
[1754895901688,0.03,184.67,184.66,0.7]
[1754895901892,30.03,184.67,184.66,0.7]
[1754895902096,34.05196206,184.67,184.66,90.27]
[1754895903686,34.05196206,184.67,184.66,95.68535795]
[1754895904581,30.03,184.67,184.66,100.4817274]
[1754895905482,0.03,184.67,184.66,100.4817274]
[1754895905686,0.03,184.67,184.66,10.9117274]
[1754895906296,0.03,184.67,184.66,115.61794297]
[1754895906496,0.03,184.69,184.68,19.90258502]
[1754895906713,0.03,184.69,184.68,147.36258502]
[1754895907014,1e-08,184.69,184.68,58.46258502]
[1754895907187,1e-08,184.69,184.68,53.66621557]
[1754895907691,1e-08,184.69,184.68,63.87735651]
[1754895910609,1e-08,184.69,184.68,43.27477149]
[1754895912112,1e-08,184.69,184.68,43.97477149]
[1754895914007,1e-08,184.69,184.68,48.77114094]
[1754895916826,1e-08,184.69,184.68,138.37114094]
[1754895918023,1e-08,184.69,184.68,100.51114094]
[1754895918324,1e-08,184.69,184.68,133.55477149]
[1754895919136,1e-08,184.69,184.68,137.65114094]
[1754895920201,1e-08,184.69,184.68,132.85477149]
[1754895920409,1e-08,184.69,184.68,137.65114094]
[1754895920613,1e-08,184.69,184.68,132.85477149]
[1754895921131,1e-08,184.69,184.68,133.55477149]
[1754895924821,1e-08,184.69,184.68,138.35114094]
[1754895926526,1e-08,184.69,184.68,133.55477149]
[1754895926739,1e-08,184.69,184.68,138.35114094]
[1754895927916,1e-08,184.69,184.68,137.65114094]
[1754895928117,1e-08,184.69,184.68,132.85477149]
[1754895928528,0.67000001,184.69,184.68,132.85477149]
[1754895928716,1e-08,184.69,184.68,132.85477149]
[1754895929623,1e-08,184.69,184.68,37.84]
[1754895929823,5.50636946,184.69,184.67,89.6]
[1754895930127,5.50636946,184.69,184.66,0.06]
[1754895930128,4.79636945,184.68,184.66,0.06]
[1754895930339,8.8102843,184.67,184.66,37.9]
[1754895930635,8.9502843,184.67,184.66,0.06]
[1754895931121,38.9502843,184.67,184.66,0.06]
[1754895933241,38.95060013,184.67,184.66,0.06]
[1754895934435,34.15423068,184.67,184.66,0.06]
[1754895934734,38.95060013,184.67,184.66,0.06]
[1754895934946,34.15423068,184.67,184.66,0.06]
[1754895935124,38.81060013,184.67,184.66,0.06]
[1754895935519,38.95060013,184.67,184.66,0.06]
[1754895936041,34.15423068,184.67,184.66,0.06]
[1754895936234,38.95060013,184.67,184.66,0.06]
[1754895936822,44.36566484,184.67,184.66,0.06]
[1754895937019,38.95060013,184.67,184.66,0.06]
[1754895938746,44.36566484,184.67,184.66,0.06]
[1754895940823,46.53421584,184.67,184.66,0.06]
[1754895942652,99.50043141,184.67,184.66,0.06]
[1754895942834,100.85548176,184.67,184.66,0.06]
[1754895944450,99.50043141,184.67,184.66,0.06]
[1754895948038,84.39421584,184.67,184.66,0.06]
[1754895948241,110.25421584,184.67,184.66,0.06]
[1754895948442,71.87423068,184.67,184.66,0.06]
[1754895948750,82.08566484,184.67,184.66,0.06]
[1754895949132,82.79566484,184.67,184.66,0.06]
[1754895949435,44.93566484,184.67,184.66,0.06]
[1754895949628,82.79566484,184.67,184.66,0.06]
[1754895950536,44.93566484,184.67,184.66,0.06]
[1754895950739,82.79566484,184.67,184.66,0.06]
[1754895950965,97.90188041,184.67,184.66,0.06]
[1754895954560,93.10551096,184.67,184.66,0.06]
[1754895957067,97.90188041,184.67,184.66,0.06]
[1754895958752,100.07066641,184.67,184.66,0.06]
[1754895959454,99.36066641,184.67,184.66,0.06]
[1754895959847,99.36066641,184.67,184.66,0.75]
[1754895960380,99.36066641,184.67,184.66,0.06]
[1754895961165,95.34643573,184.67,184.66,0.06]
[1754895961367,99.3496741,184.67,184.66,0.06]
[1754895964158,99.34943453,184.67,184.66,0.06]
[1754895965870,100.04943453,184.67,184.66,0.06]
[1754895966190,99.34943453,184.67,184.66,0.06]
[1754895966577,100.04943453,184.67,184.66,0.06]
[1754895966961,99.34943453,184.67,184.66,0.06]
[1754895968272,100.70458603,184.67,184.66,0.06]
[1754895969949,100.70458608,184.67,184.66,0.06]
[1754895970144,99.34943453,184.67,184.66,0.06]
[1754895970344,100.70454551,184.67,184.66,0.06]
[1754895973975,100.71498888,184.67,184.66,0.06]
[1754895975678,100.71841459,184.67,184.66,0.06]
[1754895976196,98.99731183,184.67,184.66,0.06]
[1754895976702,101.0063196,184.67,184.66,0.06]
[1754895976988,95.92204514,184.67,184.66,0.06]
[1754895977148,98.99731183,184.67,184.66,0.75]
[1754895977348,83.89109626,184.67,184.66,0.75]
[1754895977675,109.89109626,184.67,184.66,0.75]
[1754895978791,26.0,184.65,184.64,0.06]
[1754895979095,100.95213457,184.65,184.64,0.06]
[1754895979287,100.95213457,184.65,184.64,0.75]
[1754895981492,96.93526669,184.65,184.64,0.75]
[1754895981676,100.95758666,184.65,184.64,0.75]
[1754895982189,109.89704001,184.65,184.64,0.06]
[1754895982715,104.48138878,184.65,184.64,0.75]
[1754895983882,109.89704001,184.65,184.64,0.75]
[1754895984192,109.89704001,184.65,184.64,0.06]
[1754895984695,109.89704001,184.65,184.64,0.75]
[1754895985400,109.89704001,184.65,184.64,0.06]
[1754895988697,104.48138878,184.65,184.64,0.06]
[1754895988903,103.12625566,184.65,184.64,0.75]
[1754895990091,100.95758666,184.65,184.64,0.75]
[1754895990301,96.93526669,184.65,184.64,0.75]
[1754895990482,100.95939777,184.65,184.64,0.75]
[1754895991104,60.02413108,184.65,184.64,0.75]
[1754895991400,63.09939777,184.65,184.64,0.75]
[1754895992192,37.09939777,184.65,184.64,0.75]
[1754895997978,34.02413108,184.65,184.64,0.75]
[1754895998185,34.02413108,184.65,184.64,9.24121123]
[1754895998809,31.86413108,184.65,184.64,24.3474268]
[1754895999107,1e-08,184.69,184.64,37.88728815]
[1754895999289,4.04913155,184.68,184.64,34.12202146]
[1754895999488,4.04913155,184.68,184.67,3.07526669]
[1754895999787,30.03,184.68,184.67,3.07526669]
[1754895999981,34.04913155,184.68,184.67,8.4903314]
[1754896000181,30.03,184.68,184.67,8.4903314]
[1754896000589,0.03,184.68,184.67,8.4903314]
[1754896002413,0.03,184.68,184.67,10.21313246]
[1754896003488,0.03,184.68,184.67,48.05313246]
[1754896004509,1e-08,184.68,184.67,152.75934803]
[1754896005385,1e-08,184.68,184.67,99.81313246]
[1754896005614,1e-08,184.68,184.67,137.65313246]
[1754896008598,0.69000001,184.68,184.67,132.23806775]
[1754896009103,0.69000001,184.68,184.67,127.44]
[1754896009420,0.69000001,184.68,184.67,132.85506471]
[1754896009811,1e-08,184.68,184.67,132.85506471]
[1754896010208,0.69000001,184.68,184.67,132.85506471]
[1754896011217,0.69000001,184.68,184.67,37.84]
[1754896011418,35.48806776,184.68,184.64,0.06]
[1754896011621,4.79806775,184.66,184.64,0.06]
[1754896011803,4.79806775,184.66,184.64,37.88]
[1754896012119,0.69,184.65,184.64,37.88]
[1754896012802,5.48806775,184.67,184.64,37.88]
[1754896013115,0.69,184.66,184.64,37.88]
[1754896013693,26.69,184.65,184.64,0.06]
[1754896013899,0.69,184.65,184.64,0.06]
[1754896014621,30.69,184.65,184.64,0.06]
[1754896015012,35.48806775,184.65,184.64,0.06]
[1754896015501,44.89821772,184.65,184.64,0.06]
[1754896019124,44.89880121,184.65,184.64,0.06]
[1754896019715,44.89870438,184.65,184.64,0.06]
[1754896020037,41.10621557,184.63,184.62,0.06]
[1754896020224,79.89926872,184.63,184.61,0.06]
[1754896020535,9.51305315,184.62,184.61,0.06]
[1754896021124,85.0188404,184.62,184.61,0.06]
[1754896021636,80.22077265,184.62,184.61,0.06]
[1754896021807,85.0188404,184.62,184.61,0.06]
[1754896022233,104.92312372,184.62,184.61,0.06]
[1754896022725,100.12505597,184.62,184.61,0.06]
[1754896024105,100.11868459,184.62,184.61,0.06]
[1754896028011,36.15787002,184.62,184.61,0.06]
[1754896028324,74.88732375,184.62,184.61,0.06]
[1754896028716,75.60732375,184.62,184.61,0.06]
[1754896029126,79.59138755,184.62,184.61,0.06]
[1754896029321,74.0733198,184.62,184.61,0.06]
[1754896029521,74.0733198,184.62,184.61,5.03806775]
[1754896029522,32.169256,184.62,184.61,5.03806775]
[1754896030119,30.0,184.62,184.61,5.03806775]
[1754896030353,30.0,184.62,184.61,0.06]
[1754896033013,0.72,184.65,184.61,4.85806775]
[1754896033423,0.72,184.65,184.61,0.06]
[1754896033640,10.21373277,184.65,184.61,0.06]
[1754896033841,0.72,184.64,184.61,0.06]
[1754896034140,0.72,184.63,184.61,0.06]
[1754896035742,16.41106477,184.65,184.61,0.06]
[1754896036053,30.0,184.62,184.61,0.06]
[1754896037043,30.0,184.62,184.61,4.85806775]
[1754896037351,30.0,184.62,184.61,5.03806775]
[1754896037512,30.0,184.62,184.61,5.65682465]
[1754896037715,30.0,184.62,184.61,10.4548924]
[1754896038454,30.0,184.62,184.61,10.2748924]
[1754896038837,0.72,184.65,184.61,10.2748924]
[1754896039039,4.79806775,184.66,184.61,10.2748924]
[1754896039242,0.72,184.64,184.61,10.2748924]
[1754896040256,0.72,184.64,184.61,0.06]
[1754896040557,30.79806775,184.62,184.61,0.06]
[1754896040735,65.50446209,184.62,184.61,0.06]
[1754896040931,103.42446209,184.62,184.61,0.06]
[1754896042343,108.84099334,184.62,184.61,0.06]
[1754896043048,104.854599,184.62,184.61,0.06]
[1754896043258,108.84137613,184.62,184.61,0.06]
[1754896043639,108.8414289,184.62,184.61,0.06]
[1754896046349,128.74571222,184.62,184.61,1e-08]
[1754896046545,113.63949665,184.62,184.59,0.06]
[1754896046741,4.79806775,184.6,184.59,0.06]
[1754896046938,46.70489765,184.6,184.59,0.06]
[1754896047152,47.42489765,184.6,184.59,0.06]
[1754896047650,77.42489765,184.6,184.59,0.06]
[1754896048145,82.84201574,184.6,184.59,0.06]
[1754896049443,85.01150774,184.6,184.59,0.06]
[1754896049963,85.01276828,184.6,184.59,0.06]
[1754896052871,85.01704426,184.6,184.59,0.06]
[1754896053078,100.12325983,184.6,184.59,0.06]
[1754896053753,85.01704426,184.6,184.59,0.06]
[1754896054488,74.08185842,184.6,184.59,0.06]
[1754896054674,40.95992617,184.6,184.59,0.06]
[1754896057052,36.16185842,184.6,184.59,0.06]
[1754896057285,40.95992617,184.6,184.59,0.06]
[1754896057579,36.16185842,184.6,184.59,0.06]
[1754896057753,40.95992617,184.6,184.59,0.06]
[1754896059477,36.16185842,184.6,184.59,0.06]
[1754896059657,40.95992617,184.6,184.59,0.06]
[1754896060673,41.61992617,184.6,184.59,0.06]
[1754896061655,47.0491374,184.6,184.59,0.06]
[1754896063482,84.9091374,184.6,184.59,0.06]
[1754896067081,79.49201931,184.6,184.59,0.06]
[1754896067388,78.83201931,184.6,184.59,0.06]
[1754896067688,40.97268184,184.6,184.59,0.06]
[1754896068690,41.63268184,184.6,184.59,0.06]
[1754896068988,47.04979993,184.6,184.59,0.06]
[1754896069685,41.63268184,184.6,184.59,0.06]
[1754896070058,47.04979993,184.6,184.59,0.06]
[1754896071080,36.83461409,184.6,184.59,0.06]
[1754896071266,41.63268184,184.6,184.59,0.06]
[1754896072181,41.63262812,184.6,184.59,0.06]
[1754896073582,36.83456037,184.6,184.59,0.06]
[1754896073885,41.00262812,184.6,184.59,0.06]
[1754896074087,36.20456037,184.6,184.59,0.06]
[1754896074301,34.03506837,184.6,184.59,0.24]
[1754896075088,34.03506837,184.6,184.59,0.06]
[1754896075387,34.03506837,184.6,184.59,4.85806775]
[1754896075979,30.03,184.6,184.59,5.03806775]
[1754896076970,30.03,184.6,184.59,4.85806775]
[1754896077171,30.03,184.6,184.59,10.27547931]
[1754896081093,0.03,184.6,184.59,10.27547931]
[1754896081313,0.03,184.6,184.59,10.45547931]
[1754896081595,0.03,184.6,184.59,10.27547931]
[1754896082597,30.03,184.6,184.59,10.27547931]
[1754896082898,34.041629,184.6,184.59,10.27547931]
[1754896083298,34.041629,184.6,184.59,5.47741156]
[1754896084308,34.041629,184.6,184.59,10.27547931]
[1754896085177,34.041629,184.6,184.59,4.85806775]
[1754896085787,34.041629,184.6,184.59,0.06]
[1754896085983,34.041629,184.6,184.59,4.85806775]
[1754896088087,34.041629,184.6,184.59,10.27547931]
[1754896089198,34.041629,184.6,184.59,10.45547931]
[1754896089389,30.03,184.6,184.59,100.05547931]
[1754896089590,30.03,184.6,184.59,10.45547931]
[1754896090803,0.03,184.6,184.59,10.45547931]
[1754896092387,0.03,184.64,184.59,10.45547931]
[1754896092388,0.03,184.64,184.62,26.0]
[1754896092588,0.03,184.64,184.63,43.17969153]
[1754896092897,0.03,184.64,184.63,57.92428332]
[1754896093214,0.03,184.64,184.63,58.4659071]
[1754896093515,0.03,184.64,184.63,63.88214498]
[1754896095108,1e-08,184.64,184.63,63.88214498]
[1754896095888,1e-08,184.66,184.65,41.10621557]
[1754896096094,1e-08,184.68,184.65,84.28584844]
[1754896096318,1e-08,184.68,184.67,19.90428332]
[1754896096489,1e-08,184.68,184.67,58.28578979]
[1754896096687,1e-08,184.68,184.67,58.46578979]
[1754896096890,1e-08,184.68,184.67,63.8808545]
[1754896097720,1e-08,184.7,184.69,41.10621557]
[1754896097898,30.03,184.73,184.7,15.10621557]
[1754896098098,30.03,184.73,184.71,42.63806775]
[1754896098306,30.03,184.73,184.71,42.81806775]
[1754896098718,1e-08,184.72,184.71,58.28567252]
[1754896098914,1e-08,184.72,184.71,58.46567252]
[1754896099228,1e-08,184.72,184.71,63.87956456]
[1754896099805,1e-08,184.73,184.71,63.87956456]
[1754896100019,1e-08,184.73,184.72,4.79806775]
[1754896100201,1e-08,184.73,184.72,4.97806775]
[1754896101323,1e-08,184.73,184.72,10.39166671]
[1754896102025,1e-08,184.74,184.73,15.10621557]
[1754896102328,1e-08,184.74,184.73,53.66754616]
[1754896102903,1e-08,184.74,184.73,58.46561391]
[1754896103429,1e-08,184.74,184.73,63.87891981]
[1754896103726,0.03,184.77,184.76,41.10621557]
[1754896103900,0.03,184.79,184.76,84.28552601]
[1754896104219,0.03,184.79,184.77,0.18]
[1754896104429,0.03,184.79,184.78,57.74428332]
[1754896105517,0.03,184.79,184.78,63.15612442]
[1754896106516,0.03,184.81,184.78,68.67537628]
[1754896106710,0.03,184.81,184.8,24.70235107]
[1754896106997,0.03,184.81,184.8,62.54235107]
[1754896107215,0.03,184.81,184.8,62.72235107]
[1754896107522,0.03,184.81,184.8,68.13360648]
[1754896107823,0.03,184.81,184.8,67.95360648]
[1754896108005,0.03,184.81,184.8,63.15553873]
[1754896108323,0.03,184.81,184.8,25.31553873]
[1754896108528,0.03,184.81,184.8,63.17553873]
[1754896109227,0.69,184.81,184.8,20.51747098]
[1754896109412,0.69,184.81,184.8,5.41125541]
[1754896109612,0.69,184.81,184.8,48.06932316]
[1754896110128,0.69,184.81,184.8,43.27125541]
[1754896110321,0.69,184.81,184.8,48.06932316]
[1754896110705,0.03,184.81,184.8,63.17553873]
[1754896110907,0.03,184.81,184.8,67.97360648]
[1754896114438,0.03,184.81,184.8,68.51473202]
[1754896114613,0.03,184.81,184.8,158.11473202]
[1754896114816,0.03,184.81,184.8,157.57360648]
[1754896118443,0.03,184.81,184.8,147.97747098]
[1754896118611,0.73,184.81,184.8,152.77553873]
[1754896118817,0.03,184.81,184.8,152.77553873]
[1754896119020,0.73,184.81,184.8,152.77553873]
[1754896119229,0.73,184.81,184.8,169.04553873]
[1754896119427,0.03,184.81,184.8,157.57360648]
[1754896119625,0.73,184.81,184.8,157.57360648]
[1754896119826,0.73,184.81,184.8,152.77553873]
[1754896120128,0.73,184.81,184.8,110.11747098]
[1754896120332,0.73,184.81,184.8,89.6]
[1754896120643,5.52806775,184.81,184.8,36.47]
[1754896120823,5.52806775,184.81,184.76,5.41220638]
[1754896120824,5.52806775,184.81,184.79,37.88]
[1754896121019,0.61,184.8,184.78,37.9]
[1754896121221,5.40806775,184.8,184.78,37.9]
[1754896121421,0.61,184.79,184.78,37.9]
[1754896121724,5.40806775,184.79,184.78,37.9]
[1754896122335,5.40806775,184.79,184.76,37.88]
[1754896122543,35.40806775,184.78,184.76,37.88]
[1754896122721,0.61,184.77,184.76,37.88]
[1754896122923,5.40806775,184.77,184.76,37.88]
[1754896123816,5.40806775,184.77,184.73,5.41305858]
[1754896124022,0.61,184.76,184.74,37.9]
[1754896124224,0.61,184.75,184.74,37.9]
[1754896125830,0.61,184.77,184.74,43.31294536]
[1754896126033,0.61,184.8,184.75,0.67]
[1754896126241,0.61,184.8,184.76,42.69806775]
[1754896126637,0.61,184.79,184.76,42.69806775]
[1754896127052,0.61,184.78,184.76,37.9]
[1754896127844,4.82806775,184.81,184.76,43.3124094]
[1754896128048,0.61,184.8,184.76,43.3124094]
[1754896128248,0.03,184.81,184.76,48.11047715]
[1754896128543,0.64,184.81,184.77,4.79806775]
[1754896128737,0.64,184.81,184.78,37.9]
[1754896128941,0.64,184.81,184.78,42.69806775]
[1754896129127,0.03,184.81,184.78,42.69806775]
[1754896129935,0.03,184.81,184.78,37.9]
[1754896130341,0.64,184.81,184.78,37.9]
[1754896130626,0.03,184.81,184.78,48.10982076]
[1754896130833,0.03,184.81,184.78,48.77982076]
[1754896131326,0.03,184.81,184.79,4.79806775]
[1754896131524,0.03,184.81,184.8,42.69806775]
[1754896131948,0.03,184.81,184.8,48.77932316]
[1754896132838,0.03,184.81,184.8,137.65932316]
[1754896133849,0.03,184.81,184.8,142.45739091]
[1754896134368,0.03,184.81,184.8,68.68360648]
[1754896134540,0.03,184.81,184.8,5.41125541]
[1754896134732,0.03,184.81,184.8,48.10932316]
[1754896135135,0.03,184.81,184.8,48.77932316]
[1754896135852,0.03,184.81,184.8,68.68360648]
[1754896136034,0.03,184.82,184.81,41.10621557]
[1754896136231,0.03,184.82,184.81,41.77621557]
[1754896136431,0.03,184.82,184.81,46.57428332]
[1754896136841,0.03,184.85,184.84,26.0]
[1754896137161,0.03,184.85,184.84,172.74428332]
[1754896137331,0.03,184.85,184.84,173.41428332]
[1754896137944,0.03,184.85,184.84,178.82436771]
[1754896140342,0.03,184.85,184.84,136.06629996]
[1754896140542,0.03,184.85,184.84,132.23008439]
[1754896140757,0.03,184.85,184.84,37.94]
[1754896141335,0.64,184.85,184.84,37.94]
[1754896142755,0.03,184.85,184.84,43.35008439]
[1754896144638,0.03,184.85,184.84,37.94]
[1754896145049,0.64,184.85,184.84,37.94]
[1754896146244,4.65273069,184.85,184.84,37.94]
[1754896146647,9.45120037,184.85,184.79,88.88]
[1754896146967,4.79806775,184.83,184.8,37.92]
[1754896147149,4.01313262,184.82,184.8,37.92]
[1754896147344,4.79806775,184.83,184.8,37.92]
[1754896147345,5.40806775,184.83,184.8,37.92]
[1754896147662,4.0132158,184.82,184.8,37.92]
[1754896148340,5.40806775,184.83,184.8,43.33125444]
[1754896148664,4.01383652,184.82,184.8,43.33125444]
[1754896148848,4.01383652,184.82,184.8,37.92]
[1754896149447,5.40806775,184.83,184.8,43.33122622]
[1754896150662,5.40806775,184.83,184.8,126.8]
[1754896150874,4.79806775,184.81,184.8,37.92]
[1754896151043,9.4215611,184.81,184.8,37.92]
[1754896151450,9.42119396,184.81,184.8,37.92]
[1754896151965,8.81119396,184.81,184.8,37.92]
[1754896152361,0.61,184.83,184.8,37.92]
[1754896152543,8.81122148,184.82,184.8,37.92]
[1754896152739,4.79806775,184.82,184.8,37.92]
[1754896155971,4.79806775,184.83,184.8,37.92]
[1754896156265,4.01251595,184.82,184.8,44.01124283]
[1754896156454,4.01251595,184.82,184.8,38.6]
[1754896156656,8.8105837,184.82,184.8,37.92]
[1754896156856,4.79806775,184.83,184.8,37.92]
[1754896157075,4.01268951,184.82,184.8,37.92]
[1754896157446,8.81075726,184.82,184.8,38.6]
[1754896157656,4.79806775,184.82,184.8,37.92]
[1754896157865,5.40806775,184.82,184.8,37.92]
[1754896158380,8.81041921,184.81,184.8,37.92]
[1754896160147,9.42041921,184.81,184.78,89.6]
[1754896160353,0.03,184.85,184.78,37.88]
[1754896160354,4.79806775,184.79,184.78,37.88]
[1754896161967,6.02075424,184.82,184.78,37.88]
[1754896162156,4.79806775,184.79,184.78,37.88]
[1754896164268,9.42080308,184.79,184.78,37.88]
[1754896164446,4.01273533,184.79,184.76,42.73806775]
[1754896164642,4.79806775,184.81,184.78,0.68]
[1754896164849,8.8115169,184.8,184.78,37.9]
[1754896165167,4.01344915,184.79,184.78,37.9]
[1754896166572,4.01344915,184.79,184.78,38.58]
[1754896167649,4.01344915,184.8,184.78,38.58]
[1754896167857,4.01344915,184.8,184.78,43.31181692]
[1754896168065,4.79806775,184.81,184.79,0.68]
[1754896168264,4.0129953,184.8,184.79,0.68]
[1754896169349,4.0129953,184.8,184.78,37.9]
[1754896170065,8.81106305,184.8,184.78,37.9]
[1754896170373,4.0129953,184.79,184.78,37.9]
[1754896171576,4.01431928,184.79,184.78,37.9]
[1754896171957,4.01431928,184.79,184.76,89.66]
[1754896171958,8.81238703,184.79,184.76,89.66]
[1754896172184,8.81238703,184.78,184.76,127.52]
[1754896172484,4.01431928,184.77,184.76,128.24]
[1754896172680,4.01312895,184.78,184.76,38.64]
[1754896174555,8.8111967,184.78,184.76,38.64]
[1754896174754,4.01312895,184.77,184.76,37.92]
[1754896175558,4.01312895,184.77,184.76,0.06]
[1754896175751,4.01312895,184.77,184.76,0.78]
[1754896175752,4.01180865,184.77,184.76,0.78]
[1754896177463,4.01112664,184.77,184.76,0.78]
[1754896178573,4.79806775,184.79,184.76,0.78]
[1754896178774,4.01121843,184.78,184.77,0.72]
[1754896179189,4.01121843,184.78,184.77,43.37806775]
[1754896179362,0.03,184.86,184.77,43.37806775]
[1754896179685,8.84081006,184.86,184.81,4.79806775]
[1754896179857,4.04274231,184.85,184.82,37.88]
[1754896180056,4.04274231,184.85,184.82,38.6]
[1754896180879,14.86063298,184.85,184.82,37.88]
[1754896181066,9.42081006,184.84,184.82,37.88]
[1754896181257,4.01274231,184.83,184.82,37.88]
[1754896181657,4.01274231,184.83,184.8,37.88]
[1754896181861,4.01274231,184.83,184.8,38.6]
[1754896182259,8.81081006,184.83,184.8,38.6]
[1754896182470,4.01274231,184.82,184.8,38.66]
[1754896182887,4.01274231,184.82,184.8,36.1966692]
[1754896183365,4.01274231,184.82,184.8,35.4766692]
[1754896183565,4.01274231,184.81,184.8,36.1966692]
[1754896183764,4.01274231,184.82,184.8,36.1966692]
[1754896183966,5.43987499,184.85,184.8,36.1966692]
[1754896183967,4.01274231,184.81,184.8,35.4766692]
[1754896184177,4.01820491,184.83,184.8,35.4766692]
[1754896184399,4.01820491,184.82,184.8,35.4766692]
[1754896184578,4.79806775,184.84,184.8,35.4766692]
[1754896184579,4.01820491,184.81,184.8,35.4766692]
[1754896184788,4.01820491,184.83,184.8,35.4766692]
[1754896184989,4.01820491,184.82,184.8,35.4766692]
[1754896185170,4.01820491,184.81,184.8,36.1966692]
[1754896185366,4.01820491,184.83,184.8,36.1966692]
[1754896185577,4.01820491,184.82,184.8,36.1966692]
[1754896185777,4.01820491,184.81,184.8,36.1966692]
[1754896185978,4.01820491,184.83,184.8,36.1966692]
[1754896186193,30.0,184.81,184.8,35.4766692]
[1754896186490,34.01820491,184.81,184.8,35.4766692]
[1754896186884,34.01820491,184.81,184.8,36.1966692]
[1754896189687,39.42627266,184.81,184.8,0.06]
[1754896189888,34.01820491,184.81,184.8,0.06]
[1754896190102,34.01820491,184.81,184.8,5.57806775]
[1754896190398,34.01820491,184.81,184.8,48.84932316]
[1754896193585,4.01820491,184.81,184.8,48.84932316]
[1754896193771,4.01820491,184.84,184.8,48.84932316]
[1754896193972,4.01820491,184.83,184.8,48.12932316]
[1754896194297,4.01820491,184.82,184.81,0.72]
[1754896194483,4.01820491,184.82,184.81,38.56]
[1754896195081,4.01820491,184.82,184.81,43.97096261]
[1754896196419,4.02435568,184.82,184.81,43.97096261]
[1754896196570,34.02435568,184.82,184.81,43.97096261]
[1754896197074,34.02435568,184.82,184.81,38.56]
[1754896197888,34.02435568,184.82,184.81,43.97096261]
[1754896198086,34.02435568,184.82,184.81,48.76903036]
[1754896198692,34.02321459,184.82,184.81,48.76903036]
[1754896198878,34.02321459,184.82,184.8,89.66]
[1754896199079,30.0,184.82,184.81,37.82]
[1754896199285,34.02368539,184.82,184.81,37.82]
[1754896200699,34.02368539,184.82,184.81,38.48]
[1754896201597,34.02368539,184.82,184.81,37.82]
[1754896202311,34.02368539,184.82,184.8,95.07121354]
[1754896202494,30.0,184.82,184.81,37.84]
[1754896202810,34.02605737,184.82,184.81,37.84]
[1754896203383,30.0,184.82,184.81,37.82]
[1754896203702,34.02583754,184.82,184.81,37.82]
[1754896204290,34.05583754,184.82,184.81,37.82]
[1754896204498,34.05583754,184.82,184.8,0.72]
[1754896204713,30.03,184.82,184.81,37.82]
[1754896204917,34.05475473,184.82,184.81,37.82]
[1754896205379,34.05475473,184.82,184.8,6.13123147]